bitfinex/quotes_SOLUSD_20250915
["timestamp","ask_amount","ask_price","bid_price","bid_amount"]
[1757944940466,7.00261063,235.08,235.01,0.87]
[1757944940675,7.00261063,235.02,235.01,0.16]
[1757944941148,7.00261063,235.02,235.01,4.41513807]
[1757944941344,7.00261063,235.02,235.01,0.16]
[1757944941748,7.69261063,235.02,235.01,0.16]
[1757944941957,42.11261063,235.02,235.01,0.16]
[1757944942546,3.49996143,235.16,235.01,52.7277487]
[1757944942866,10.16467499,235.15,235.05,7.00261063]
[1757944943038,7.00261063,235.13,235.02,0.71]
[1757944943239,7.00261063,235.11,235.03,7.00261063]
[1757944943663,7.00261063,235.11,235.01,55.65298326]
[1757944943664,13.59559401,235.1,235.04,4.25459496]
[1757944943842,7.00261063,235.05,235.02,4.25495702]
[1757944944044,7.00261063,235.05,235.02,14.89234958]
[1757944944451,0.69,235.09,235.02,14.89234958]
[1757944944664,7.00261063,235.06,235.02,4.25495702]
[1757944944853,0.69,235.09,235.02,4.25495702]
[1757944945075,7.00261063,235.06,235.02,4.25495702]
[1757944945381,7.00261063,235.04,235.01,0.16]
[1757944945547,7.00261063,235.04,235.01,4.41503529]
[1757944945861,7.00261063,235.02,235.01,0.16]
[1757944946061,133.19,235.03,235.01,0.16]
[1757944946256,7.00261063,235.02,235.01,0.16]
[1757944946451,7.00261063,235.07,235.01,15.05298326]
[1757944946662,3.1660939,235.06,235.01,4.41513807]
[1757944946874,10.16870453,235.05,235.01,4.41513807]
[1757944947052,3.1660939,235.04,235.01,4.41513807]
[1757944947374,45.59848665,235.03,235.01,0.16]
[1757944947560,3.85587602,235.02,235.01,0.16]
[1757944947874,3.85587602,235.02,235.01,4.41513807]
[1757944948061,3.85587602,235.02,235.01,0.16]
[1757944949273,3.85555189,235.02,235.01,0.16]
[1757944949577,17.4511459,235.02,235.01,0.16]
[1757944949754,7.00261063,234.92,234.91,0.1]
[1757944949950,41.74261063,234.92,234.91,4.35694947]
[1757944950354,42.43261063,234.92,234.91,0.1]
[1757944951289,41.72261063,234.92,234.91,0.1]
[1757944951578,41.72261063,234.92,234.91,4.35694947]
[1757944951780,35.41,234.92,234.91,0.1]
[1757944951985,42.41261063,234.92,234.91,0.1]
[1757944952982,42.43261063,234.92,234.91,0.1]
[1757944953163,7.69261063,234.92,234.91,0.1]
[1757944953366,42.41261063,234.92,234.91,4.35694947]
[1757944953569,42.22261063,234.92,234.91,4.35694947]
[1757944953881,35.22,234.92,234.91,4.35694947]
[1757944954088,0.5,234.92,234.91,5.02694947]
[1757944954287,16.44,234.92,234.91,0.1]
[1757944954660,16.44,234.92,234.91,4.35694947]
[1757944954855,0.5,234.92,234.91,4.35694947]
[1757944955058,0.5,234.92,234.91,5.02694947]
[1757944955275,0.5,234.92,234.91,4.35694947]
[1757944955484,7.50261063,234.92,234.91,4.35694947]
[1757944955861,7.50261063,234.92,234.91,0.1]
[1757944956261,12.44937889,234.92,234.91,0.1]
[1757944956464,8.19261063,234.92,234.91,0.1]
[1757944956879,17.98820464,234.92,234.91,0.1]
[1757944957576,34.74,234.93,234.91,0.1]
[1757944957765,41.72261063,234.92,234.91,0.1]
[1757944958297,34.72,234.93,234.91,4.35694947]
[1757944958508,7.00261063,234.94,234.91,14.99932314]
[1757944958706,34.72,234.95,234.92,0.67]
[1757944959001,34.72,234.95,234.93,0.67]
[1757944959897,7.00261063,234.96,234.94,0.67]
[1757944960076,34.7,234.99,234.95,14.89678654]
[1757944960271,34.7,234.99,234.95,15.56678654]
[1757944960462,34.7,234.99,234.96,0.67]
[1757944960668,7.00261063,234.98,234.92,11.31181412]
[1757944960894,7.00261063,234.95,234.93,4.25658706]
[1757944961180,20.59820464,235.04,234.93,15.56805473]
[1757944961181,13.59559401,235.04,234.93,15.56805473]
[1757944961368,7.00261063,234.99,234.94,0.67]
[1757944961767,34.7,235.0,234.91,0.1]
[1757944961768,7.00261063,234.97,234.91,0.1]
[1757944961968,7.00261063,234.95,234.91,0.1]
[1757944962187,7.00261063,234.93,234.91,0.1]
[1757944962599,34.76,234.92,234.91,0.1]
[1757944962805,49.04559401,234.92,234.91,0.1]
[1757944963690,48.35559401,234.92,234.91,0.1]
[1757944963872,7.00261063,234.93,234.91,0.1]
[1757944964068,34.76,234.92,234.91,0.1]
[1757944964987,49.04559401,234.92,234.91,0.1]
[1757944965287,34.76,234.92,234.91,0.1]
[1757944965685,34.76,234.92,234.91,4.35694947]
[1757944965882,34.76,234.92,234.91,0.1]
[1757944966394,41.76261063,234.92,234.91,0.1]
[1757944966571,7.00261063,234.92,234.91,4.35694947]
[1757944966898,26.0,234.97,234.91,5.02694947]
[1757944967089,7.00261063,234.94,234.91,4.35694947]
[1757944967290,7.00261063,234.92,234.91,4.35694947]
[1757944967488,7.00261063,234.92,234.91,0.1]
[1757944967700,7.00261063,234.92,234.91,4.35694947]
[1757944968783,7.00261063,234.92,234.91,5.02694947]
[1757944969098,34.72,234.94,234.91,5.02694947]
[1757944969301,7.00261063,234.93,234.91,0.1]
[1757944969874,7.69261063,234.93,234.91,0.1]
[1757944970073,11.94923445,234.93,234.91,0.1]
[1757944970598,20.59820464,234.92,234.91,0.1]
[1757944970903,21.28820464,234.92,234.91,0.1]
[1757944971408,21.28820464,234.92,234.91,0.16]
[1757944971609,26.0,234.88,234.81,0.1]
[1757944971776,7.00261063,234.82,234.81,0.1]
[1757944971976,41.80261063,234.82,234.81,0.1]
[1757944972598,34.78,234.82,234.81,0.1]
[1757944972784,7.00261063,234.82,234.81,4.3587624]
[1757944972985,7.00261063,234.82,234.81,0.1]
[1757944973195,26.0,234.84,234.81,4.3587624]
[1757944973502,41.78261063,234.82,234.81,0.1]
[1757944974075,41.78261063,234.82,234.81,4.3587624]
[1757944974308,7.00261063,234.82,234.81,4.3587624]
[1757944974608,0.71,234.91,234.81,5.0587624]
[1757944974898,0.71,234.91,234.81,0.1]
[1757944974899,7.00261063,234.82,234.81,0.1]
[1757944975104,41.78261063,234.82,234.81,0.1]
[1757944975881,40.24058298,234.82,234.81,0.1]
[1757944976082,39.53058298,234.82,234.81,0.1]
[1757944976801,4.75058298,234.82,234.81,0.1]
[1757944977024,39.51058298,234.82,234.81,0.1]
[1757944977176,39.51058298,234.82,234.81,4.3587624]
[1757944977796,39.51058298,234.82,234.81,0.1]
[1757944978794,34.74,234.82,234.81,5.0587624]
[1757944979003,39.49058298,234.82,234.81,5.0587624]
[1757944979211,4.75058298,234.84,234.81,15.7056684]
[1757944979386,4.75058298,234.84,234.82,0.7]
[1757944979588,4.75058298,234.84,234.81,15.0056684]
[1757944979781,34.74,234.85,234.82,0.7]
[1757944980009,4.75058298,234.84,234.82,0.7]
[1757944980515,41.39270286,234.92,234.81,15.0056684]
[1757944980516,5.50423222,234.95,234.83,0.7]
[1757944980818,3.49996143,234.99,234.83,0.7]
[1757944980819,4.75058298,234.86,234.83,0.7]
[1757944981019,4.75058298,234.86,234.84,0.7]
[1757944981221,34.72,234.87,234.85,0.7]
[1757944981406,5.46058298,234.86,234.81,15.0056684]
[1757944981720,4.75058298,234.82,234.81,0.1]
[1757944981897,39.53058298,234.82,234.81,0.1]
[1757944982420,34.78,234.82,234.81,5.0787574]
[1757944982621,4.75058298,234.84,234.81,5.0787574]
[1757944982922,39.53058298,234.84,234.81,4.3587574]
[1757944983305,39.53058298,234.84,234.81,5.0787574]
[1757944983488,4.75058298,234.82,234.81,0.1]
[1757944983915,34.78,234.84,234.81,4.35874902]
[1757944984116,4.75058298,234.82,234.81,0.1]
[1757944985113,4.75058298,234.82,234.67,0.1]
[1757944985114,31.41058298,234.82,234.67,0.1]
[1757944985302,4.75058298,234.72,234.67,0.1]
[1757944985504,18.34617699,234.68,234.67,0.1]
[1757944985814,63.37391372,234.68,234.67,0.1]
[1757944986014,38.76,234.65,234.21,0.1]
[1757944986214,4.75058298,234.5,234.45,0.72]
[1757944986416,26.0,234.57,234.46,4.26511984]
[1757944986606,4.75058298,234.54,234.47,0.72]
[1757944987106,4.75058298,234.53,234.47,0.72]
[1757944987301,37.54,234.56,234.47,0.72]
[1757944987494,4.75058298,234.5,234.47,0.72]
[1757944987707,39.59559401,234.6,234.47,0.72]
[1757944987708,4.75058298,234.48,234.47,0.72]
[1757944988339,0.66,234.58,234.47,0.72]
[1757944988340,13.59559401,234.56,234.48,4.26475605]
[1757944988505,4.75058298,234.49,234.48,4.26475605]
[1757944988824,4.75058298,234.51,234.48,4.98475605]
[1757944989199,0.66,234.55,234.43,0.72]
[1757944989425,4.75058298,234.51,234.43,0.72]
[1757944989808,4.75058298,234.45,234.43,0.72]
[1757944990000,4.75058298,234.45,234.41,4.36598027]
[1757944990196,4.75058298,234.45,234.42,0.72]
[1757944990395,26.0,234.51,234.43,4.98566565]
[1757944990624,4.75058298,234.49,234.43,15.64982979]
[1757944991007,37.52,234.58,234.48,0.06]
[1757944991328,4.75058298,234.52,234.48,0.06]
[1757944991626,26.0,234.55,234.48,0.06]
[1757944991817,4.75058298,234.5,234.48,0.06]
[1757944992714,13.59559401,234.52,234.48,0.06]
[1757944992918,4.75058298,234.49,234.48,0.06]
[1757944993517,13.59559401,234.52,234.48,0.06]
[1757944993726,4.75058298,234.49,234.48,0.06]
[1757944994312,13.59559401,234.52,234.48,0.06]
[1757944994514,4.75058298,234.5,234.48,0.06]
[1757944995329,39.59559401,234.49,234.48,0.06]
[1757944995625,40.25559401,234.49,234.48,0.06]
[1757944996405,86.65075117,234.49,234.48,0.06]
[1757944997621,81.72617699,234.49,234.48,0.06]
[1757944998011,77.63559401,234.49,234.48,0.06]
[1757944998244,81.72617699,234.49,234.48,0.06]
[1757944998830,82.38617699,234.49,234.48,0.06]
[1757945000817,63.38,234.49,234.48,0.06]
[1757945001017,81.72617699,234.49,234.48,0.06]
[1757945001209,82.38617699,234.49,234.48,0.06]
[1757945001923,28.52224019,234.48,234.41,0.1]
[1757945002122,4.75058298,234.42,234.41,0.1]
[1757945002531,13.59559401,234.42,234.41,0.1]
[1757945002743,18.34617699,234.42,234.41,0.1]
[1757945002930,67.95058298,234.45,234.41,0.82]
[1757945003237,40.25559401,234.42,234.41,0.1]
[1757945003409,4.75058298,234.38,234.35,0.72]
[1757945003609,4.75058298,234.38,234.36,0.72]
[1757945003822,4.75058298,234.38,234.37,0.72]
[1757945004005,4.75058298,234.42,234.37,0.72]
[1757945004209,4.75058298,234.42,234.38,0.72]
[1757945004431,4.75058298,234.42,234.39,0.72]
[1757945004611,4.75058298,234.42,234.4,0.72]
[1757945005027,4.75058298,234.4,234.37,0.72]
[1757945005225,37.16,234.43,234.37,0.72]
[1757945005428,39.59559401,234.46,234.37,0.72]
[1757945005621,4.75058298,234.42,234.37,0.72]
[1757945005921,4.75058298,234.41,234.38,0.72]
[1757945006125,4.75058298,234.43,234.39,0.72]
[1757945006336,4.75058298,234.48,234.39,0.72]
[1757945006546,4.75058298,234.48,234.4,14.93174061]
[1757945006720,4.75058298,234.48,234.41,0.72]
[1757945006921,37.1,234.5,234.41,0.72]
[1757945007239,30.72,234.66,234.41,0.72]
[1757945007240,37.08,234.57,234.41,0.72]
[1757945007412,37.08,234.57,234.47,4.75058298]
[1757945007613,37.08,234.57,234.48,0.72]
[1757945007815,37.08,234.57,234.49,4.75058298]
[1757945008014,0.1,234.59,234.5,0.72]
[1757945008434,0.1,234.59,234.53,4.75058298]
[1757945008747,0.1,234.59,234.54,4.26366504]
[1757945009236,4.75058298,234.55,234.46,0.72]
[1757945009454,13.59559401,234.53,234.42,0.72]
[1757945009749,5.63132027,234.53,234.43,4.75058298]
[1757945009914,0.66,234.52,234.42,0.72]
[1757945010111,19.22691428,234.53,234.43,4.75058298]
[1757945010335,4.75058298,234.47,234.42,0.72]
[1757945010523,4.75058298,234.47,234.43,0.72]
[1757945010723,4.75058298,234.47,234.44,4.2654837]
[1757945010921,4.75058298,234.47,234.44,4.9854837]
[1757945011140,4.75058298,234.45,234.4,0.72]
[1757945011327,4.75058298,234.45,234.41,0.72]
[1757945012033,4.75058298,234.45,234.34,14.9355637]
[1757945012235,4.26494118,234.47,234.42,0.06]
[1757945012236,4.75058298,234.47,234.42,0.06]
[1757945012426,4.75058298,234.45,234.42,0.06]
[1757945012622,4.75058298,234.45,234.43,4.26566565]
[1757945012826,5.63132027,234.54,234.44,0.66]
[1757945013138,4.75058298,234.53,234.44,0.66]
[1757945013313,4.75058298,234.51,234.44,0.66]
[1757945013716,4.75058298,234.53,234.44,0.66]
[1757945013938,4.75058298,234.51,234.44,0.66]
[1757945014139,4.75058298,234.52,234.44,0.66]
[1757945014447,4.75058298,234.56,234.45,4.75058298]
[1757945014743,4.75058298,234.56,234.47,14.9272828]
[1757945014941,4.75058298,234.56,234.48,0.66]
[1757945015515,0.03,234.58,234.51,4.75058298]
[1757945015824,0.03,234.58,234.47,14.9272828]
[1757945015825,0.03,234.58,234.53,4.75058298]
[1757945016144,0.03,234.58,234.55,4.75058298]
[1757945016326,0.03,234.58,234.57,4.75058298]
[1757945016737,0.03,234.58,234.57,9.67370273]
[1757945017916,1e-08,234.59,234.57,9.67370273]
[1757945018120,1e-08,234.59,234.58,0.66]
[1757945018548,1e-08,234.59,234.58,5.41058298]
[1757945018755,1e-08,234.59,234.58,9.67352099]
[1757945019439,1e-08,234.59,234.58,4.92293801]
[1757945019648,1e-08,234.59,234.58,9.67352099]
[1757945019841,1e-08,234.59,234.58,5.41058298]
[1757945020851,1e-08,234.59,234.58,9.67352099]
[1757945021050,1e-08,234.59,234.58,5.41058298]
[1757945021250,1e-08,234.59,234.58,9.67352099]
[1757945022755,1e-08,234.59,234.58,4.92293801]
[1757945022925,1e-08,234.59,234.58,9.67352099]
[1757945026269,0.1,234.69,234.59,13.59559401]
[1757945026470,0.1,234.69,234.68,4.75058298]
[1757945026980,0.1,234.69,234.68,9.6717045]
[1757945027143,0.1,234.69,234.68,4.75058298]
[1757945027671,0.6,234.69,234.68,5.41058298]
[1757945028051,0.1,234.69,234.68,4.75058298]
[1757945029049,0.1,234.69,234.68,9.0117045]
[1757945029252,0.1,234.69,234.68,4.26112152]
[1757945029467,0.1,234.69,234.68,9.0117045]
[1757945029640,0.1,234.69,234.68,4.75058298]
[1757945029851,0.1,234.69,234.68,9.0117045]
[1757945030058,0.1,234.69,234.68,9.6717045]
[1757945030948,0.1,234.69,234.65,10.6538251]
[1757945030949,0.1,234.69,234.65,14.91549141]
[1757945031175,0.1,234.69,234.64,9.01242922]
[1757945031373,0.72,234.68,234.62,4.26208163]
[1757945031674,26.0,234.66,234.55,0.66]
[1757945031850,3.8556604,234.65,234.57,4.75058298]
[1757945032259,0.72,234.65,234.59,4.75058298]
[1757945032652,26.0,234.68,234.61,4.75058298]
[1757945033174,0.85,234.69,234.63,4.26196553]
[1757945033378,0.13,234.69,234.65,4.75058298]
[1757945033550,0.13,234.69,234.67,4.75058298]
[1757945033949,0.13,234.69,234.66,4.75058298]
[1757945035573,0.13,234.69,234.66,9.01204612]
[1757945035868,0.13,234.69,234.66,7.02508288]
[1757945036179,0.67,234.68,234.64,7.02508288]
[1757945036471,0.67,234.68,234.64,11.28691632]
[1757945036769,0.13,234.69,234.64,11.28691632]
[1757945036975,0.67,234.68,234.64,7.02508288]
[1757945037349,0.67,234.68,234.64,11.28691995]
[1757945037573,0.67,234.68,234.53,36.52]
[1757945037574,159.17,234.67,234.58,7.02508288]
[1757945037868,133.17,234.66,234.58,7.02508288]
[1757945038273,0.67,234.65,234.58,7.02508288]
[1757945038975,4.93180188,234.65,234.52,10.66007163]
[1757945039161,26.0,234.61,234.52,0.7]
[1757945039355,26.0,234.61,234.56,7.02508288]
[1757945039564,26.67,234.61,234.56,7.02508288]
[1757945039752,26.67,234.61,234.54,7.02508288]
[1757945039949,4.93180188,234.65,234.58,7.02508288]
[1757945040153,36.52,234.64,234.58,7.02508288]
[1757945040770,36.52,234.64,234.57,7.02508288]
[1757945041172,36.52,234.64,234.43,46.41050676]
[1757945041173,26.0,234.59,234.48,0.7]
[1757945041376,7.02508288,234.58,234.48,7.72508288]
[1757945041574,26.0,234.54,234.42,7.08508288]
[1757945041781,26.0,234.5,234.44,7.02508288]
[1757945042285,26.0,234.51,234.44,7.02508288]
[1757945042658,30.26439232,234.5,234.42,5.00567181]
[1757945042970,7.73508288,234.52,234.42,5.00567181]
[1757945043177,0.71,234.52,234.43,7.02508288]
[1757945043958,33.02508288,234.54,234.43,7.02508288]
[1757945044175,132.5,234.53,234.44,0.68]
[1757945044378,132.5,234.53,234.46,7.02508288]
[1757945044692,132.5,234.53,234.47,4.26493794]
[1757945045066,132.5,234.53,234.46,11.29017092]
[1757945045269,132.5,234.53,234.46,21.95297054]
[1757945045660,132.5,234.53,234.46,4.26508804]
[1757945047158,133.21,234.53,234.46,4.26508804]
[1757945048867,132.5,234.53,234.46,14.92788766]
[1757945049063,132.5,234.53,234.47,7.02508288]
[1757945049289,0.71,234.52,234.44,7.02508288]
[1757945049592,132.5,234.53,234.44,21.95427584]
[1757945049992,36.34,234.55,234.5,7.02508288]
[1757945050368,0.71,234.58,234.5,7.02508288]
[1757945050600,0.71,234.57,234.42,4.32567283]
[1757945050766,7.02508288,234.49,234.43,0.68]
[1757945050974,43.50508288,234.51,234.43,0.68]
[1757945051471,7.02508288,234.49,234.42,14.99029188]
[1757945051673,7.02508288,234.49,234.46,0.06]
[1757945051878,37.19,234.51,234.46,0.06]
[1757945052107,0.71,234.49,234.46,0.06]
[1757945052287,7.02508288,234.5,234.46,4.32502279]
[1757945052512,7.02508288,234.5,234.46,0.06]
[1757945052670,0.71,234.5,234.46,0.06]
[1757945052870,7.02508288,234.49,234.46,0.06]
[1757945053301,7.02508288,234.49,234.46,4.32510983]
[1757945053783,7.02508288,234.5,234.46,4.32510983]
[1757945054688,36.48,234.51,234.46,4.32510983]
[1757945054888,43.50508288,234.51,234.46,4.32510983]
[1757945055292,7.02508288,234.51,234.46,4.32510983]
[1757945055986,7.02508288,234.49,234.46,0.06]
[1757945056805,4.26462233,234.49,234.46,0.06]
[1757945057009,7.02508288,234.48,234.46,0.06]
[1757945057400,0.71,234.49,234.46,0.06]
[1757945057608,7.73508288,234.49,234.46,0.06]
[1757945058009,11.99972822,234.49,234.46,0.06]
[1757945058294,7.02508288,234.48,234.46,0.06]
[1757945058510,7.73508288,234.48,234.46,0.06]
[1757945058683,0.71,234.48,234.46,0.06]
[1757945058888,7.73508288,234.48,234.46,0.06]
[1757945059125,169.45,234.47,234.46,0.06]
[1757945059295,194.64006196,234.47,234.46,0.06]
[1757945059715,194.63927647,234.47,234.46,0.06]
[1757945060024,201.66435935,234.47,234.46,0.06]
[1757945060390,185.24438989,234.47,234.46,0.06]
[1757945060617,189.50724516,234.47,234.46,0.06]
[1757945060813,210.53230722,234.47,234.46,0.06]
[1757945060996,132.5,234.47,234.46,0.06]
[1757945061991,132.5,234.47,234.46,4.32511984]
[1757945062186,132.5,234.47,234.46,0.06]
[1757945064110,133.21,234.47,234.46,0.06]
[1757945064318,137.47493794,234.47,234.46,0.06]
[1757945064623,136.76493794,234.47,234.46,0.06]
[1757945064823,13.59559401,234.44,234.42,0.06]
[1757945065021,13.59559401,234.46,234.31,0.1]
[1757945065022,26.0,234.4,234.31,0.1]
[1757945065522,7.02508288,234.33,234.31,4.36782611]
[1757945065722,36.3,234.32,234.31,4.36782611]
[1757945065924,36.3,234.32,234.31,0.1]
[1757945066501,7.02508288,234.33,234.31,0.1]
[1757945066803,36.28,234.32,234.31,0.1]
[1757945067200,36.28,234.32,234.07,2.11654993]
[1757945067201,26.0,234.29,234.07,2.11654993]
[1757945067440,26.0,234.29,234.01,4.36804393]
[1757945067441,14.05016576,234.08,234.01,4.36804393]
[1757945067723,6.95388571,234.07,234.01,0.1]
[1757945068023,7.02508288,234.02,234.01,0.1]
[1757945068235,40.78,234.05,234.01,0.1]
[1757945068400,7.02508288,234.02,234.01,0.1]
[1757945068601,48.02508288,234.02,234.01,0.1]
[1757945068802,11.29822192,234.02,234.01,0.1]
[1757945069028,33.02508288,234.02,234.0,148.19598662]
[1757945069238,41.06,234.01,234.0,148.19598662]
[1757945069421,67.06,234.01,234.0,148.19598662]
[1757945070005,6.57110793,234.07,234.0,148.19598662]
[1757945070228,26.0,234.03,234.0,148.19598662]
[1757945070400,7.02508288,234.01,234.0,148.19598662]
[1757945070952,7.02508288,234.01,234.0,62.87542564]
[1757945070953,20.95751076,234.01,234.0,62.87542564]
[1757945071160,17.86951246,234.01,234.0,62.87542564]
[1757945071334,13.59619081,234.01,234.0,62.87542564]
[1757945071650,7.02508288,234.01,234.0,62.87542564]
[1757945072065,7.02508288,234.05,234.0,62.87542564]
[1757945072238,12.96531988,234.14,234.0,62.87542564]
[1757945072239,41.18,234.06,234.0,63.54542564]
[1757945072441,6.57110793,234.14,234.0,70.57050852]
[1757945072661,48.20508288,234.14,234.01,0.67]
[1757945072961,41.18,234.14,234.01,0.67]
[1757945073137,0.1,234.19,234.06,7.02508288]
[1757945073138,7.02508288,234.18,234.06,7.02508288]
[1757945073453,7.02508288,234.18,234.07,0.67]
[1757945073655,7.02508288,234.18,234.07,7.69508288]
[1757945073656,26.0,234.15,234.07,7.69508288]
[1757945073827,41.28,234.19,234.09,7.02508288]
[1757945074133,41.28,234.19,234.11,7.02508288]
[1757945074332,41.28,234.19,234.1,0.67]
[1757945074534,41.28,234.19,234.1,7.69508288]
[1757945074761,41.28,234.19,234.02,41.18]
[1757945074762,41.28,234.19,234.12,7.02508288]
[1757945075049,41.28,234.19,234.11,7.69508288]
[1757945075558,0.1,234.19,234.14,7.02508288]
[1757945075760,0.1,234.19,234.15,0.67]
[1757945075932,0.1,234.19,234.16,0.67]
[1757945076134,0.1,234.19,234.17,0.67]
[1757945076537,0.1,234.19,234.18,0.67]
[1757945077529,0.1,234.19,234.18,7.69508288]
[1757945078354,0.1,234.29,234.19,14.94513001]
[1757945078661,0.1,234.29,234.26,7.02508288]
[1757945078849,0.1,234.29,234.27,4.26857899]
[1757945079152,0.1,234.29,234.28,7.02508288]
[1757945079358,0.1,234.29,234.28,7.69508288]
[1757945079539,0.1,234.29,234.21,7.02508288]
[1757945079856,4.5,234.28,234.24,0.67]
[1757945080159,7.02508288,234.26,234.14,0.67]
[1757945080456,40.92,234.25,234.15,7.02508288]
[1757945080857,40.92,234.25,234.1,4.27167876]
[1757945080858,7.02508288,234.2,234.11,4.2714963]
[1757945081038,40.94,234.19,234.11,4.2714963]
[1757945082053,7.02508288,234.12,234.11,4.2714963]
[1757945082256,7.02508288,234.12,234.09,4.27183343]
[1757945082443,40.94,234.19,234.02,0.67]
[1757945082444,7.02508288,234.1,234.02,0.67]
[1757945082645,7.02508288,234.04,234.0,62.87542564]
[1757945082835,7.02508288,234.08,234.0,62.87542564]
[1757945082836,7.02508288,234.02,234.0,62.87542564]
[1757945083039,7.02508288,234.02,234.01,4.37324253]
[1757945083654,7.02508288,234.02,234.01,0.1]
[1757945084356,66.82,234.05,234.01,0.1]
[1757945084537,7.02508288,234.04,234.01,0.1]
[1757945084733,7.02508288,234.03,234.01,0.1]
[1757945085645,66.82,234.05,234.01,0.1]
[1757945085842,47.84508288,234.05,234.01,0.1]
[1757945086566,26.0,234.09,234.02,0.67]
[1757945086755,40.7,234.08,234.02,0.67]
[1757945087567,40.7,234.08,234.02,7.69508288]
[1757945087866,0.1,234.21,234.02,7.69508288]
[1757945087867,40.66,234.13,234.03,0.67]
[1757945088051,13.59559401,234.23,234.07,7.02508288]
[1757945088243,7.02508288,234.18,234.09,14.95151436]
[1757945089061,7.02508288,234.16,234.09,14.95151436]
[1757945089363,7.02508288,234.16,234.04,0.67]
[1757945089364,7.02508288,234.1,234.04,0.67]
[1757945089681,7.02508288,234.11,234.02,14.95598665]
[1757945089864,7.02508288,234.11,234.05,0.67]
[1757945090048,47.60508288,234.15,234.05,0.67]
[1757945090449,47.60508288,234.15,234.06,14.95343074]
[1757945090748,4.5,234.13,234.06,14.95343074]
[1757945090958,11.52508288,234.13,234.06,4.27240878]
[1757945091162,33.02508288,234.07,234.01,0.1]
[1757945091350,7.02508288,234.05,234.01,0.1]
[1757945091859,7.02508288,234.05,234.01,4.43328136]
[1757945092243,40.56,234.07,234.01,4.43328136]
[1757945092440,40.56,234.07,234.01,15.78658549]
[1757945092866,47.58508288,234.07,234.01,15.78658549]
[1757945093559,47.58508288,234.07,234.01,15.65808969]
[1757945094047,40.56,234.07,234.01,14.98808969]
[1757945094252,40.44,234.12,234.02,0.71]
[1757945094452,40.44,234.12,234.02,7.73508288]
[1757945094673,40.44,234.12,234.03,0.71]
[1757945094851,4.5,234.13,234.03,0.71]
[1757945095349,4.5,234.13,234.06,7.02508288]
[1757945095564,4.5,234.13,234.07,0.71]
[1757945095949,40.48,234.19,234.1,7.02508288]
[1757945096275,40.48,234.19,234.11,0.71]
[1757945096657,0.1,234.19,234.12,7.02508288]
[1757945096868,0.1,234.19,234.11,0.71]
[1757945097360,0.1,234.19,234.11,7.73508288]
[1757945097670,0.1,234.19,234.13,7.02508288]
[1757945097862,0.1,234.19,234.08,36.31237182]
[1757945097863,4.77324722,234.16,234.08,14.9521531]
[1757945098064,4.77324722,234.15,234.08,14.9521531]
[1757945098463,4.77324722,234.13,234.08,4.27204374]
[1757945098660,4.77324722,234.09,234.08,14.9521531]
[1757945099177,4.77324722,234.09,234.08,4.27204374]
[1757945099364,4.77324722,234.09,234.08,4.98204374]
[1757945099760,4.77324722,234.09,234.08,4.27204374]
[1757945100066,4.77324722,234.09,234.05,14.95393897]
[1757945100265,40.44,234.13,234.06,0.71]
[1757945100473,4.77324722,234.07,234.06,0.71]
[1757945101175,9.27324722,234.07,234.06,0.71]
[1757945101480,4.5,234.07,234.01,0.0315042]
[1757945101684,4.77324722,234.02,234.01,0.0315042]
[1757945101986,4.77324722,234.02,234.01,4.30466541]
[1757945102177,4.77324722,234.02,234.01,0.0315042]
[1757945103680,4.5,234.07,234.01,0.0315042]
[1757945103856,3.10158538,234.06,234.01,0.0315042]
[1757945104280,4.5,234.07,234.02,0.72]